bitfinex/quotes_ETHUSD_20250731
["timestamp","ask_amount","ask_price","bid_price","bid_amount"]
[1753980015033,0.4739,3818.8,3818.1,4.19500001]
[1753980015364,0.55,3819.2,3818.3,2.61893003]
[1753980015578,2.61849671,3819.0,3818.3,2.61893003]
[1753980016063,2.61849671,3819.0,3818.4,2.61889387]
[1753980016266,2.61849671,3819.0,3818.3,2.61894552]
[1753980016470,2.61855697,3818.9,3818.3,2.61894552]
[1753980016765,0.36633897,3819.1,3818.4,2.61889122]
[1753980016766,2.61850531,3819.0,3818.4,2.61889122]
[1753980017062,2.61848987,3819.0,3818.4,2.61889122]
[1753980017260,2.61848987,3819.0,3818.3,2.61895123]
[1753980017439,2.61860871,3818.9,3818.2,0.4839]
[1753980017643,0.36633897,3819.1,3818.4,2.61888276]
[1753980017971,2.61822883,3819.4,3818.7,2.61863597]
[1753980018177,3.16818633,3819.5,3818.8,3.11320195]
[1753980018373,0.4389,3819.9,3818.9,4.6826]
[1753980018668,3.0,3819.9,3819.3,2.61822926]
[1753980018981,3.0,3819.9,3819.4,4.19]
[1753980018982,2.61788833,3819.9,3819.4,4.19]
[1753980019179,2.61788833,3819.9,3819.4,4.6846]
[1753980019355,3.0,3819.9,3819.4,6.80820135]
[1753980019552,3.0,3820.1,3819.5,0.4946]
[1753980019755,3.05677381,3819.9,3819.4,4.19]
[1753980019970,0.6056564,3820.0,3819.4,4.19]
[1753980019971,3.0565501,3820.3,3819.6,2.61803916]
[1753980020157,3.4389,3820.3,3819.5,3.11272374]
[1753980020353,2.61774247,3820.1,3819.5,0.4946]
[1753980020566,0.4389,3820.3,3819.5,0.4946]
[1753980020775,2.61772396,3820.2,3819.5,2.61813716]
[1753980021079,0.55,3820.0,3819.4,4.19]
[1753980021265,0.4389,3820.1,3819.4,4.6846]
[1753980021573,0.1312,3820.0,3819.5,0.1312]
[1753980021774,0.1312,3820.0,3819.4,4.19]
[1753980021775,2.61807519,3819.6,3819.4,4.19]
[1753980022036,3.08977052,3819.5,3819.4,4.19]
[1753980022180,0.4389,3819.5,3819.4,4.19]
[1753980022562,0.1312,3819.7,3819.4,4.19]
[1753980022762,0.9889,3819.6,3819.2,0.1312]
[1753980023086,2.74948387,3819.3,3818.6,0.1312]
[1753980023256,2.7496658,3819.1,3818.6,0.1312]
[1753980023456,2.61848651,3819.0,3818.6,0.1312]
[1753980023657,2.61869222,3818.7,3818.6,0.1312]
[1753980023863,2.92772455,3818.7,3818.6,0.1312]
[1753980024156,2.61903514,3818.2,3817.7,0.001]
[1753980024478,2.78297307,3818.2,3817.7,0.001]
[1753980024681,2.61930955,3817.8,3817.7,1e-08]
[1753980024884,2.61972126,3817.2,3816.9,0.001]
[1753980025057,6.85760313,3817.2,3816.9,0.001]
[1753980025380,7.75695662,3817.2,3816.9,0.001]
[1753980027392,7.75695662,3817.2,3817.1,0.041]
[1753980028293,11.94395662,3817.2,3817.1,0.041]
[1753980028458,7.75695662,3817.2,3817.1,0.041]
[1753980028659,11.94395662,3817.2,3817.1,0.041]
[1753980028858,7.26375662,3817.2,3817.1,0.041]
[1753980029461,0.1312,3817.2,3817.1,0.041]
[1753980029691,0.1312,3817.2,3817.1,1.0094]
[1753980029896,0.1312,3817.2,3817.1,3.62918989]
[1753980030075,0.1312,3817.2,3817.1,0.5356]
[1753980030396,0.1312,3817.6,3817.1,0.5356]
[1753980030723,0.1312,3817.6,3817.2,0.4946]
[1753980031220,0.1312,3817.7,3817.3,0.4946]
[1753980031361,0.1312,3817.7,3817.5,2.61950333]
[1753980031562,0.4389,3818.9,3817.6,0.4946]
[1753980031792,0.4389,3819.3,3817.6,1.0996]
[1753980032102,0.1312,3818.7,3818.3,2.61892189]
[1753980032301,0.1312,3818.7,3818.2,0.1312]
[1753980032470,0.1312,3818.7,3818.4,0.4946]
[1753980033809,0.4389,3819.7,3818.6,2.6187608]
[1753980034015,0.4389,3819.7,3818.5,0.6258]
[1753980034016,0.1312,3819.0,3818.5,0.6258]
[1753980034186,0.1312,3819.0,3818.6,2.6187608]
[1753980034498,0.1312,3819.0,3818.7,0.4946]
[1753980034806,0.1312,3819.0,3818.8,0.4946]
[1753980035167,0.4389,3819.7,3818.9,0.4946]
[1753980035366,3.1312,3819.4,3818.9,0.6258]
[1753980035593,0.1312,3819.4,3819.0,0.4946]
[1753980035790,0.1312,3819.4,3818.9,0.1312]
[1753980035791,0.48821,3819.4,3818.9,2.74973705]
[1753980035976,0.48821,3819.4,3819.1,0.4946]
[1753980036472,0.1312,3819.4,3819.1,0.4946]
[1753980036804,0.1312,3819.4,3819.1,2.61841085]
[1753980037195,0.1312,3819.4,3819.2,0.4946]
[1753980038514,0.1312,3819.4,3818.9,0.6258]
[1753980038697,0.37549835,3819.4,3819.1,2.6184171]
[1753980038868,0.24429835,3819.3,3819.0,4.176]
[1753980039203,2.61828083,3819.3,3819.0,4.176]
[1753980039410,2.61832583,3819.3,3819.0,4.176]
[1753980039804,2.61836084,3819.2,3819.0,4.6706]
[1753980039978,2.61848651,3819.0,3818.6,4.17]
[1753980040181,2.61860785,3818.9,3818.6,4.17]
[1753980040379,2.61865333,3818.8,3818.6,4.17]
[1753980040970,2.61857106,3818.9,3818.6,4.17]
[1753980041171,2.61869222,3818.7,3818.6,4.169]
[1753980041505,2.61815327,3819.5,3818.6,7.2823608]
[1753980041669,0.4389,3820.0,3818.7,0.9684]
[1753980041875,2.61794456,3819.8,3818.8,3.11317319]
[1753980042180,1.1765958,3819.7,3816.5,8.91414522]
[1753980042381,1.1765958,3819.7,3817.9,0.1312]
[1753980042382,0.1312,3818.4,3817.9,0.1312]
[1753980042608,0.1312,3818.4,3818.0,7.29172001]
[1753980042913,0.1312,3818.4,3818.1,0.4946]
[1753980043068,0.1312,3818.4,3818.0,4.178]
[1753980043273,0.1312,3818.8,3818.2,0.1312]
[1753980043473,0.1312,3819.2,3818.6,2.74991038]
[1753980043711,0.37576939,3819.2,3818.6,3.24451038]
[1753980044210,0.37576939,3819.2,3818.7,4.197]
[1753980044416,0.1312,3818.7,3818.6,4.197]
[1753980044914,0.84508255,3818.7,3818.4,4.197]
[1753980045112,2.61917234,3818.0,3817.4,0.4946]
[1753980045409,2.78321565,3817.9,3817.5,4.197]
[1753980045570,0.1312,3817.6,3817.1,0.1722]
[1753980045777,2.61972126,3817.2,3817.1,0.041]
[1753980045977,3.18952356,3817.2,3817.1,0.041]
[1753980046204,4.09877705,3817.2,3817.1,0.041]
[1753980046408,4.68152356,3817.2,3817.1,0.041]
[1753980046589,4.64877705,3817.2,3817.1,0.041]
[1753980048632,7.64877705,3817.2,3817.1,0.041]
[1753980048919,7.89323477,3817.2,3817.1,0.041]
[1753980050785,12.22043477,3817.2,3817.1,0.041]
[1753980050981,6.53243477,3817.2,3817.1,0.041]
[1753980051182,3.91271351,3817.2,3817.1,0.041]
[1753980051408,0.1312,3817.2,3817.1,3.15858989]
[1753980051729,2.7508813,3817.3,3817.1,0.041]
[1753980052091,0.1312,3817.3,3817.1,0.041]
[1753980052618,3.65266777,3817.2,3817.1,0.041]
[1753980052927,6.16972126,3817.2,3817.1,0.041]
[1753980053135,6.79981339,3817.2,3817.1,0.041]
[1753980053507,7.25001339,3817.2,3817.1,0.041]
[1753980054038,4.63029213,3817.2,3817.1,0.041]
[1753980054201,4.18009213,3817.2,3817.1,0.041]
[1753980054402,3.79981339,3817.2,3817.1,0.041]
[1753980054736,4.25001339,3817.2,3817.1,0.041]
[1753980056181,3.79981339,3817.2,3817.1,0.041]
[1753980056350,4.18009213,3817.2,3817.1,0.041]
[1753980056550,1.18009213,3817.2,3817.1,0.041]
[1753980056753,0.55,3817.2,3817.1,0.041]
[1753980056970,4.188,3817.8,3817.1,0.5388]
[1753980057279,0.1312,3817.4,3817.1,0.5388]
[1753980057578,0.1312,3817.4,3817.2,0.4978]
[1753980057998,4.189,3818.2,3817.3,0.6026]
[1753980058300,0.72718255,3818.7,3817.4,0.4978]
[1753980058301,0.1312,3818.0,3817.4,0.4978]
[1753980058450,0.1312,3818.1,3817.8,2.61926024]
[1753980058649,0.1312,3818.1,3817.9,0.4978]
[1753980059162,0.1312,3818.1,3817.6,0.1312]
[1753980059163,2.75031049,3818.1,3817.6,0.1312]
[1753980059473,0.1312,3818.1,3817.7,0.4978]
[1753980059884,0.58273965,3818.0,3817.7,0.4978]
[1753980060041,0.55,3818.0,3817.6,0.1312]
[1753980060241,0.55,3817.7,3817.6,0.1312]
[1753980060442,0.55,3817.7,3817.2,0.1312]
[1753980060443,0.6812,3817.7,3817.2,0.1312]
[1753980060670,2.75085916,3817.3,3817.1,0.041]
[1753980060874,6.20246777,3817.2,3817.1,0.041]
[1753980061070,7.11172126,3817.2,3817.1,0.041]
[1753980061256,7.35583422,3817.2,3817.1,0.041]
[1753980062745,7.35583422,3817.2,3816.5,0.001]
[1753980062980,6.30105852,3817.0,3816.5,0.001]
[1753980063192,3.1699958,3816.8,3816.5,0.001]
[1753980063426,7.98710876,3816.8,3816.5,0.001]
[1753980063599,8.11830876,3816.8,3816.5,0.001]
[1753980063744,3.1701331,3816.6,3816.5,0.001]
[1753980063945,10.4853331,3816.6,3816.5,0.001]
[1753980064144,12.98936599,3816.6,3816.5,0.001]
[1753980064542,3.17040773,3816.2,3816.1,0.041]
[1753980064742,6.30160773,3816.2,3816.1,0.041]
[1753980064985,6.75180773,3816.2,3816.1,0.041]
[1753980065779,10.48760773,3816.2,3816.1,0.041]
[1753980066082,11.84758075,3816.2,3816.1,0.041]
[1753980066788,11.84558075,3816.2,3816.1,0.041]
[1753980067584,9.67537302,3816.2,3815.1,0.04]
[1753980067801,5.62150684,3814.6,3814.5,0.001]
[1753980068006,10.41750684,3814.6,3814.5,0.001]
[1753980068145,10.41750684,3814.6,3814.1,1e-08]
[1753980068146,6.17178176,3814.2,3814.1,1e-08]
[1753980068352,10.54898176,3814.2,3814.1,1e-08]
[1753980068760,13.06398176,3814.2,3814.1,1e-08]
[1753980069094,14.63254943,3814.2,3814.1,1e-08]
[1753980069298,10.51727941,3814.2,3814.1,1e-08]
[1753980069500,14.76227941,3814.2,3814.1,1e-08]
[1753980069659,10.51727941,3814.2,3814.1,1e-08]
[1753980069860,14.76227941,3814.2,3814.1,1e-08]
[1753980070390,14.76127941,3814.2,3814.1,1e-08]
[1753980070689,10.51727941,3814.2,3814.1,1e-08]
[1753980070890,14.75927941,3814.2,3814.1,1e-08]
[1753980071412,13.18627941,3814.2,3814.1,1e-08]
[1753980076276,13.18627941,3814.2,3812.1,0.74017071]
[1753980076277,6.17315723,3812.2,3812.1,0.74017071]
[1753980076578,7.9122,3812.2,3812.1,1.65937071]
[1753980076777,3.6812,3812.2,3812.1,1.22857071]
[1753980076964,3.6812,3812.2,3812.1,1.65937071]
[1753980077590,4.232,3812.3,3812.1,1.65937071]
[1753980077907,0.55,3812.2,3812.1,1.65937071]
[1753980078117,0.55,3812.2,3812.1,0.74017071]
[1753980078283,0.1312,3812.3,3812.1,0.74017071]
[1753980078472,0.78827,3814.0,3812.9,2.62266955]
[1753980078670,0.1312,3813.1,3813.0,0.4884]
[1753980078875,0.1312,3813.5,3813.0,1.0504]
[1753980079109,0.1312,3813.7,3813.3,2.62235536]
[1753980079311,0.1312,3813.7,3813.4,0.9192]
[1753980079497,0.1312,3813.7,3813.4,1.27335554]
[1753980079698,0.1312,3814.0,3813.7,2.62205716]
[1753980080011,0.1312,3814.0,3813.8,0.9192]
[1753980080219,0.04,3814.9,3813.8,0.9192]
[1753980080370,0.1312,3814.4,3814.0,2.62191528]
[1753980080568,0.1312,3814.5,3814.1,0.9192]
[1753980080774,0.1312,3814.5,3814.2,0.9192]
[1753980081174,0.1312,3814.5,3814.0,2.6219114]
[1753980081416,0.1312,3814.5,3814.3,0.9192]
[1753980081713,0.55,3814.4,3814.3,0.9192]
[1753980081899,0.1312,3814.5,3814.3,0.4884]
[1753980082095,0.1312,3814.5,3814.0,0.4308]
[1753980082096,2.7527954,3814.5,3814.4,0.4884]
[1753980082296,3.1715954,3814.5,3814.4,0.4884]
[1753980082474,3.3027954,3814.5,3814.4,0.4884]
[1753980082681,0.55,3814.3,3814.0,0.4884]
[1753980082921,0.55,3813.9,3813.6,0.4884]
[1753980083073,0.55,3813.7,3813.3,0.1312]
[1753980083278,0.55,3813.7,3813.4,0.4308]
[1753980083279,3.0,3813.6,3813.4,0.4308]
[1753980083473,3.55,3813.7,3813.4,0.4308]
[1753980083712,0.55,3813.9,3813.5,0.9192]
[1753980083914,0.55,3813.9,3813.6,0.9192]
[1753980084334,3.17209107,3813.8,3813.7,0.4884]
[1753980084478,0.55,3813.7,3812.7,0.4308]
[1753980084831,0.55,3813.7,3813.1,0.4884]
[1753980084832,3.17245504,3813.3,3813.1,0.4884]
[1753980085114,0.55,3813.2,3813.1,0.4884]
[1753980085288,0.55,3813.1,3812.7,0.4308]
[1753980085494,0.55,3813.1,3812.8,0.4308]
[1753980085689,2.62273367,3812.9,3812.4,0.4308]
[1753980086015,0.1312,3812.8,3812.5,0.4884]
[1753980086184,3.17286312,3812.7,3812.6,0.4884]
[1753980086705,0.55,3812.7,3812.6,0.4884]
[1753980086900,3.17281322,3812.7,3812.6,0.4884]
[1753980087236,0.55,3812.7,3812.6,0.4884]
[1753980088212,3.17281322,3812.7,3812.6,0.4884]
[1753980088794,0.55,3812.7,3812.6,0.4884]
[1753980090081,0.1312,3812.8,3812.6,0.9192]
[1753980090308,0.1312,3812.8,3812.7,0.9192]
[1753980090628,0.1312,3813.5,3812.7,1.0504]
[1753980090781,0.1312,3813.9,3813.3,2.62238387]
[1753980090981,0.1312,3813.9,3813.4,0.6196]
[1753980091212,0.55,3813.8,3813.4,0.1312]
[1753980091430,0.1312,3813.9,3813.5,0.4884]
[1753980091903,0.1312,3813.9,3813.6,0.4884]
[1753980092101,0.1312,3813.9,3813.6,0.9192]
[1753980092312,0.1312,3813.9,3813.7,0.4884]
[1753980092480,0.1312,3813.9,3813.8,2.62205674]
[1753980092691,0.1312,3814.3,3813.8,0.1312]
[1753980092905,0.1312,3814.3,3813.9,0.4884]
[1753980093228,0.1312,3814.3,3813.8,0.1312]
[1753980093386,0.55,3814.2,3814.0,0.4884]
[1753980093611,0.55,3814.2,3813.8,0.1312]
[1753980093814,3.55,3814.0,3813.6,0.4884]
[1753980094040,3.30312379,3814.0,3813.5,0.1312]
[1753980094357,3.30312379,3814.0,3813.7,0.4884]
[1753980094657,0.6812,3814.0,3813.5,0.1312]
[1753980094856,0.6812,3814.0,3813.8,0.4884]
[1753980095061,0.55,3813.8,3812.9,0.4884]
[1753980095228,3.17226976,3813.5,3812.9,0.4884]
[1753980095434,3.0,3813.4,3813.1,0.1312]
[1753980095832,2.62240054,3813.3,3813.2,0.4884]
[1753980096567,0.55,3813.5,3813.2,0.4884]
[1753980096780,0.04,3814.9,3813.3,0.9192]
[1753980097124,0.04,3814.9,3813.2,0.32422046]
[1753980097125,0.1712,3814.9,3814.5,2.62157556]
[1753980097334,0.04,3814.9,3814.5,2.75277556]
[1753980097646,0.04,3814.9,3814.5,3.54077556]
[1753980098331,0.04,3815.9,3815.1,6.82230959]
[1753980098640,0.04,3815.9,3815.7,2.62073655]
[1753980098827,0.04,3815.9,3815.8,2.62068242]
[1753980099329,0.04,3815.9,3815.6,4.598]
[1753980099528,0.04,3815.9,3815.8,0.4884]
[1753980105791,3.17069053,3815.8,3815.6,4.598]
[1753980105987,0.55,3815.8,3815.6,4.598]
[1753980110080,4.0706511,3815.7,3815.6,4.598]
[1753980110400,3.3019511,3815.7,3815.6,4.598]
[1753980110763,0.6812,3815.7,3815.6,4.598]
[1753980110967,0.1712,3815.9,3815.6,5.0904]
[1753980111166,0.04,3815.9,3815.7,0.9574]
[1753980111491,0.04,3815.9,3815.7,0.1312]
[1753980111800,0.04,3815.9,3815.7,0.6236]
[1753980112100,0.04,3815.9,3815.8,3.11308242]
[1753980112404,0.04,3815.9,3815.8,0.4924]
[1753980112603,0.04,3815.9,3815.8,3.11308242]
[1753980113106,1e-08,3815.9,3815.8,8.88439133]
[1753980113291,1e-08,3815.9,3815.8,12.01559133]
[1753980114168,1e-08,3815.9,3815.8,7.75559133]
[1753980114365,0.002,3818.7,3815.8,6.57490891]
[1753980114606,0.002,3818.7,3818.6,2.6187608]
[1753980114775,0.002,3818.7,3818.6,6.8267608]
[1753980115098,0.002,3818.7,3818.6,7.4503608]
[1753980115675,0.002,3818.7,3818.6,4.8396]
[1753980115871,0.002,3818.7,3818.6,7.4583608]
[1753980116074,0.002,3818.7,3818.6,7.9233608]
[1753980116690,0.002,3818.7,3818.6,4.8396]
[1753980118293,0.002,3818.7,3818.6,7.4583608]
[1753980118602,0.002,3818.7,3818.6,7.9233608]
[1753980118773,0.002,3818.7,3818.6,4.8396]
[1753980118975,0.002,3818.7,3818.6,0.1312]
[1753980119175,0.002,3818.7,3818.6,4.3392]
[1753980120592,0.002,3818.7,3818.6,3.2423608]
[1753980120799,0.002,3818.7,3818.6,8.21654434]
[1753980121372,1e-08,3818.7,3818.6,8.21654434]
[1753980121801,1e-08,3818.9,3818.8,2.61862365]
[1753980122020,1e-08,3818.9,3818.8,6.82062365]
[1753980122174,1e-08,3819.1,3819.0,2.61848651]
[1753980122366,1e-08,3819.1,3819.0,14.09721656]
[1753980122566,1e-08,3819.1,3819.0,15.05461656]
[1753980124403,1e-08,3819.1,3819.0,10.85361656]
[1753980124597,1e-08,3819.1,3819.0,15.05061656]
[1753980125716,1e-08,3819.1,3819.0,3.56630697]
[1753980125917,1e-08,3819.1,3819.0,4.03130697]
[1753980126094,1e-08,3819.1,3819.0,8.22430697]
[1753980127825,0.4688,3820.6,3819.8,2.61793811]
[1753980128026,0.4688,3820.6,3819.8,7.46173416]
[1753980128242,0.00200001,3820.9,3819.8,11.61515786]
[1753980128591,0.00200001,3820.9,3820.8,2.61725293]
[1753980128792,0.00200001,3820.9,3820.8,6.80625293]
[1753980129025,0.00200001,3820.9,3820.8,6.93945293]
[1753980129327,0.00200001,3820.9,3820.8,8.38753189]
[1753980130895,0.00200001,3820.9,3820.8,7.89513189]
[1753980131106,0.00200001,3820.9,3820.8,5.27587896]
[1753980131296,0.00200001,3820.9,3820.8,6.93745293]
[1753980131497,0.90190001,3820.9,3820.8,4.3202]
[1753980131728,0.00200001,3820.9,3820.8,7.42985293]
[1753980133830,0.00200001,3820.9,3820.8,7.29865293]
[1753980134037,0.00200001,3820.9,3820.8,8.97248807]
[1753980135493,0.00200001,3820.9,3820.8,8.48008807]
[1753980135701,0.00200001,3820.9,3820.8,8.97248807]
[1753980136037,0.00200001,3820.9,3820.8,9.43748807]
[1753980136395,0.00200001,3820.9,3820.8,9.44208807]
[1753980137098,0.00200001,3820.9,3820.8,12.44208807]
[1753980137496,0.00200001,3820.9,3820.8,11.97248807]
[1753980138238,0.00200001,3820.9,3820.8,2.61725293]
[1753980138440,0.00200001,3820.9,3820.8,6.79625293]
[1753980139435,0.00200001,3820.9,3820.8,2.61725293]
[1753980139735,0.00200001,3820.9,3820.8,6.79525293]
[1753980140639,0.95280001,3820.9,3820.7,2.61729544]
[1753980140826,0.9508,3820.8,3820.7,2.61729544]
[1753980141026,0.9508,3820.8,3820.7,6.92249544]
[1753980141616,0.00200001,3820.9,3820.8,2.61725293]
[1753980141818,0.00200001,3820.9,3820.8,4.25345873]
[1753980142025,0.00200001,3820.9,3820.8,4.86575873]
[1753980142930,0.00200001,3820.9,3820.8,13.61409732]
[1753980143346,0.00200001,3820.9,3820.8,13.00179732]
[1753980143940,0.00200001,3820.9,3820.8,13.48289732]
[1753980144522,0.00200001,3820.9,3820.8,17.16979732]
[1753980144923,0.00200001,3820.9,3820.8,17.65089732]
[1753980145119,0.002,3821.3,3820.8,17.65089732]
[1753980145120,0.002,3821.3,3821.0,2.61711593]
[1753980145333,0.002,3821.3,3821.0,7.77432838]
[1753980145532,0.002,3821.3,3821.0,4.08842838]
[1753980145846,0.002,3821.3,3821.0,6.91531593]
[1753980146048,0.002,3821.3,3821.0,7.39641593]
[1753980146544,0.002,3821.3,3821.0,6.91831593]
[1753980146745,0.9548,3821.1,3821.0,6.91831593]
[1753980147045,0.004,3821.1,3821.0,6.91631593]
[1753980147231,0.004,3821.1,3821.0,8.13138696]
[1753980147610,0.004,3821.1,3821.0,3.96338696]
[1753980147841,0.004,3821.1,3821.0,6.91631593]
[1753980148144,0.004,3821.1,3821.0,7.39741593]
[1753980148842,0.004,3821.1,3821.0,6.91631593]
[1753980149344,0.004,3821.1,3821.0,6.91531593]
[1753980150209,0.004,3821.1,3821.0,7.39641593]
[1753980150411,0.004,3821.1,3821.0,8.39777722]
[1753980151613,0.002,3821.3,3821.2,2.61697895]
[1753980151819,0.002,3821.3,3821.2,15.65951754]
[1753980152042,0.002,3821.3,3821.2,16.14061754]
[1753980152224,0.002,3821.3,3821.2,18.08989496]
[1753980152923,0.04,3821.9,3821.8,11.36490669]
[1753980153129,0.04,3821.9,3821.8,15.52490669]
[1753980153336,0.04,3821.9,3821.8,16.13720669]
[1753980153919,0.04,3821.9,3821.8,6.9087681]
[1753980154162,0.04,3821.9,3821.8,7.91346415]
[1753980154366,0.04,3821.9,3821.8,7.43236415]
[1753980154664,0.9908,3821.9,3821.8,7.43236415]
[1753980155460,0.9908,3821.9,3821.8,6.9077681]
[1753980156174,0.04,3821.9,3821.8,6.9077681]
[1753980156471,0.04,3821.9,3821.8,7.09952939]
[1753980156853,0.04,3821.9,3821.8,7.58062939]
[1753980157248,0.04,3821.9,3821.8,7.09952939]
[1753980157435,0.04,3821.9,3821.8,8.62348673]
[1753980157653,0.9928,3821.9,3821.8,4.46648673]
[1753980157985,0.9928,3821.9,3820.6,2.61733934]
[1753980157986,0.4992,3821.9,3820.6,2.61733934]
[1753980158189,2.61663657,3821.7,3820.7,6.77929497]
[1753980158484,0.48990881,3821.6,3820.7,4.162]
[1753980158657,2.61702998,3821.2,3820.8,4.163]
[1753980158997,2.61702998,3821.2,3819.8,6.4820237]
[1753980158998,0.4572,3821.1,3819.8,6.4820237]
[1753980159137,0.4572,3821.1,3819.8,6.286]
[1753980159474,0.4572,3821.1,3820.5,2.61740179]
[1753980159771,0.4572,3821.1,3820.6,6.78238299]
[1753980159967,0.4572,3821.1,3821.0,2.61711593]
[1753980160132,0.042,3821.9,3821.0,4.165]
[1753980160335,3.31884039,3821.8,3821.1,2.61700393]
[1753980160535,3.3189025,3821.7,3821.2,4.165]
[1753980160732,0.70226036,3821.6,3821.2,4.165]
[1753980160978,0.70226036,3821.5,3820.5,2.61740136]
[1753980161145,0.70226036,3821.4,3820.9,2.61712263]
[1753980161352,0.70226036,3821.3,3821.0,4.164]
[1753980161553,0.4572,3821.2,3821.1,4.164]
[1753980161752,0.70230687,3821.2,3821.1,4.164]
[1753980161987,0.70230687,3821.2,3819.9,0.001]
[1753980162144,0.042,3821.9,3819.9,0.001]
[1753980162145,0.24510687,3821.1,3820.2,2.61765844]
[1753980162482,0.70230687,3821.0,3820.3,4.163]
[1753980162672,0.24510687,3820.9,3820.5,2.61745844]
[1753980162867,0.24510687,3820.8,3820.6,4.163]
[1753980163048,0.24510687,3820.7,3820.5,2.6174419]
[1753980163244,0.4572,3820.6,3820.3,0.4811]
[1753980163574,0.4572,3820.5,3820.4,4.161]
[1753980163770,0.4572,3820.5,3820.0,0.4811]
[1753980164085,0.4572,3820.4,3820.1,4.16]
[1753980164376,2.61681355,3821.5,3819.9,2.61885785]
[1753980164377,3.07480402,3820.3,3819.9,0.001]
[1753980164581,0.55,3821.3,3820.2,8.74833859]
[1753980164915,0.55,3821.3,3820.3,4.159]
[1753980164916,0.4572,3820.7,3820.3,4.159]
[1753980165085,0.24494027,3820.6,3820.3,4.159]
[1753980165240,0.24494027,3820.5,3820.3,0.4811]
[1753980165445,0.4572,3821.5,3820.4,13.38943859]
[1753980165680,0.24481535,3821.4,3820.5,0.4811]
[1753980165983,0.4572,3821.8,3821.0,2.61706581]
[1753980166183,0.4572,3821.8,3820.6,5.54490386]
[1753980166184,0.24480379,3821.7,3820.9,2.61712726]
[1753980166479,0.24480379,3821.6,3821.0,6.77809162]
[1753980166777,0.24480379,3821.6,3820.8,0.4614]
[1753980166778,0.4292,3821.5,3820.8,0.4614]
[1753980166991,0.24480379,3821.4,3821.0,2.61708589]
[1753980167353,0.4292,3821.3,3820.6,2.61732258]
[1753980167683,0.4292,3821.3,3820.7,4.159]
[1753980167860,2.86179753,3821.2,3820.8,4.158]
[1753980168038,0.70673167,3821.1,3819.9,0.4624]
[1753980168242,0.67401858,3821.0,3820.5,0.1312]
[1753980168442,0.24481858,3820.9,3820.6,4.16]
[1753980168707,0.4292,3820.8,3820.6,4.16]
[1753980168907,0.1312,3821.1,3820.6,4.16]
[1753980169120,0.4292,3820.7,3820.6,4.16]
[1753980169322,0.1312,3821.1,3820.6,4.16]
[1753980169488,0.4292,3821.0,3820.7,2.6172737]
[1753980169692,0.4292,3820.9,3820.7,2.6172737]
[1753980170420,0.1312,3821.3,3820.6,4.2912]
[1753980170594,0.4292,3821.2,3820.6,4.2912]
[1753980170792,0.2446859,3821.1,3820.7,2.61727867]
[1753980171218,0.4292,3821.0,3820.7,2.61727867]
[1753980171377,0.4292,3821.0,3820.6,6.90857118]
[1753980171575,0.4292,3820.9,3820.6,4.2912]
[1753980171877,0.4292,3820.8,3820.7,4.154]
[1753980172403,0.4292,3820.8,3820.4,0.1312]
[1753980172603,0.4292,3820.8,3820.2,2.61761285]
[1753980172604,5.61738993,3820.6,3820.5,4.154]
[1753980172806,3.04661237,3820.6,3820.5,4.154]
[1753980173105,0.4292,3820.6,3820.5,4.154]
[1753980173679,3.04658993,3820.6,3820.5,4.154]
[1753980174094,6.04658993,3820.6,3820.5,4.154]
[1753980174378,0.55,3820.4,3819.9,0.001]
[1753980174579,6.16755671,3820.4,3820.0,4.154]
[1753980174775,3.0,3820.1,3820.0,4.154]
[1753980174989,3.04693252,3820.1,3820.0,4.154]
[1753980175225,2.61780104,3820.0,3819.9,0.001]
[1753980175392,6.72820104,3820.0,3819.9,0.001]
[1753980175792,4.1104,3820.0,3819.9,0.001]
[1753980175992,6.72820104,3820.0,3819.9,0.001]
[1753980176392,5.72820104,3820.0,3819.9,0.001]
[1753980177012,6.58875101,3820.0,3819.9,0.001]
[1753980178284,7.13875101,3820.0,3819.9,0.001]
[1753980178619,7.13875101,3820.0,3819.5,0.001]
[1753980178620,5.61807519,3819.6,3819.5,0.001]
[1753980178915,5.74927519,3819.6,3819.5,0.001]
[1753980179215,6.17847519,3819.6,3819.5,0.001]
[1753980179419,7.11312192,3819.6,3819.5,0.001]
[1753980179626,7.66312192,3819.6,3819.5,0.001]
[1753980180397,7.90701162,3819.6,3819.5,0.001]
[1753980180784,7.66312192,3819.6,3819.5,0.001]
[1753980180985,7.90701226,3819.6,3819.5,0.001]
[1753980181425,3.16834939,3819.2,3819.1,1e-08]
[1753980181625,3.16869222,3818.7,3818.6,1e-08]
[1753980181792,6.16896655,3818.3,3818.2,0.001]
[1753980181996,6.30016655,3818.3,3818.2,0.001]
[1753980182328,5.61972126,3817.2,3817.1,0.04]
[1753980182819,6.18012126,3817.2,3817.1,0.04]
[1753980183188,3.1312,3817.2,3817.1,0.04]
[1753980183424,5.75092126,3817.2,3817.1,0.04]
[1753980183718,3.1312,3817.2,3817.1,0.04]
[1753980184631,3.5604,3817.2,3817.1,0.04]
[1753980185515,3.1312,3817.2,3817.1,0.04]
[1753980186042,5.75092126,3817.2,3817.1,0.04]
[1753980186337,3.5604,3817.2,3817.1,0.04]
[1753980186541,7.01716564,3817.2,3817.1,0.04]
[1753980186721,4.39744438,3817.2,3817.1,0.04]
[1753980186919,7.01716564,3817.2,3817.1,0.04]
[1753980187485,7.56716564,3817.2,3817.1,0.04]
[1753980188497,4.94744438,3817.2,3817.1,0.04]
[1753980188849,6.73012126,3817.2,3817.1,0.04]
[1753980189363,2.61863865,3818.8,3817.1,9.24973859]
[1753980189658,0.1312,3818.0,3817.4,2.75078368]
[1753980189794,2.61902451,3818.3,3817.5,2.61944692]
[1753980189994,0.1312,3818.1,3817.6,0.5926]